bitfinex/quotes_SOLUSD_20251013
["timestamp","ask_amount","ask_price","bid_price","bid_amount"]
[1760339358500,0.10727667,198.15,198.14,10.87647521]
[1760339358695,0.10727667,198.15,198.14,17.24615647]
[1760339358895,0.10727667,198.15,198.14,102.06469042]
[1760339359523,0.79727667,198.15,198.14,79.77159745]
[1760339360102,7.16695793,198.15,198.11,10.87647521]
[1760339360417,7.16695793,198.15,198.01,5.05024998]
[1760339360418,6.36968126,198.12,198.01,5.05024998]
[1760339360620,6.36968126,198.09,198.05,10.87647521]
[1760339360912,0.69,198.08,198.03,6.36968126]
[1760339361086,0.69,198.07,198.03,6.36968126]
[1760339361290,0.69,198.1,198.04,17.24615647]
[1760339361516,7.05968126,198.09,198.04,17.24615647]
[1760339361713,0.69,198.08,198.03,6.36968126]
[1760339361916,0.69,198.07,198.04,10.87647521]
[1760339362213,0.69,198.06,198.04,15.92593741]
[1760339362399,7.05968126,198.05,197.88,134.1]
[1760339362721,6.36968126,197.99,197.93,6.36968126]
[1760339362902,6.36968126,198.0,197.94,6.36968126]
[1760339363105,0.69,198.01,197.95,6.36968126]
[1760339363306,0.69,198.05,198.0,17.24615647]
[1760339363509,6.36968126,198.07,198.02,6.36968126]
[1760339363720,0.69,198.04,198.02,6.36968126]
[1760339363931,0.69,198.06,198.03,6.36968126]
[1760339364095,0.69,198.08,198.05,6.36968126]
[1760339364297,0.69,198.07,198.04,10.87647521]
[1760339364605,6.36968126,198.05,197.97,5.05127039]
[1760339364825,7.05968126,198.04,197.99,10.87647521]
[1760339365121,0.69,198.03,197.99,17.24615647]
[1760339365422,0.69,198.05,198.0,6.36968126]
[1760339365625,0.69,198.04,198.0,6.36968126]
[1760339365795,0.69,198.03,198.0,6.36968126]
[1760339365990,7.05968126,198.02,197.93,12.63054246]
[1760339366219,7.05968126,198.01,197.95,6.36968126]
[1760339366392,7.05968126,198.01,197.94,10.87647521]
[1760339366393,7.05968126,198.0,197.96,10.87647521]
[1760339366597,6.36968126,197.98,197.86,25.46969512]
[1760339366815,6.36968126,197.96,197.9,11.42273835]
[1760339367004,0.69,197.95,197.9,11.42273835]
[1760339367208,0.69,197.94,197.91,10.87647521]
[1760339367410,0.69,197.94,197.91,17.24615647]
[1760339368414,0.69,197.94,197.91,22.29895709]
[1760339368617,0.69,197.94,197.91,15.92927583]
[1760339368820,0.69,197.96,197.92,6.36968126]
[1760339369020,6.36968126,197.98,197.92,6.36968126]
[1760339369218,5.05065954,198.0,197.93,17.24615647]
[1760339369406,0.69,198.02,197.97,6.36968126]
[1760339369606,0.69,198.01,197.97,10.87647521]
[1760339369808,6.36968126,198.03,197.97,17.24615647]
[1760339370013,0.69,198.03,197.98,6.36968126]
[1760339370204,0.69,198.02,197.98,6.36968126]
[1760339370406,11.41917753,198.04,197.9,6.36968126]
[1760339370407,21.49,198.01,197.9,6.36968126]
[1760339370721,6.36968126,197.96,197.9,6.36968126]
[1760339370899,7.05968126,197.97,197.91,6.36968126]
[1760339371614,0.69,197.97,197.91,6.36968126]
[1760339371808,7.05968126,197.97,197.92,6.36968126]
[1760339372013,0.09452094,197.93,197.91,6.36968126]
[1760339372327,0.09452094,197.93,197.92,10.87647521]
[1760339373229,0.09452094,197.93,197.91,10.87647521]
[1760339373415,0.09452094,197.93,197.91,17.24615647]
[1760339374019,0.09452094,197.93,197.92,10.87647521]
[1760339374613,0.09452094,197.93,197.92,7.08968126]
[1760339374818,0.09452094,197.93,197.92,17.96615647]
[1760339375515,0.09452094,197.93,197.92,23.01870295]
[1760339377916,0.09452094,197.93,197.92,22.29870295]
[1760339378240,0.09452094,197.93,197.92,23.01870295]
[1760339380518,0.10497881,197.94,197.93,10.87647521]
[1760339380738,0.10497881,197.94,197.93,17.96615647]
[1760339381435,0.10497881,197.94,197.93,38.76615647]
[1760339382045,0.10235944,197.95,197.94,31.67647521]
[1760339382222,0.10235944,197.95,197.94,38.76615647]
[1760339383016,0.1003753,197.97,197.95,10.87647521]
[1760339383236,0.0948949,198.0,197.97,31.67647521]
[1760339383422,0.0948949,198.0,197.97,38.04615647]
[1760339383621,0.0948949,198.0,197.97,38.76615647]
[1760339383934,1e-08,198.0,197.97,45.13583773]
[1760339384114,0.69,198.04,198.0,10.87647521]
[1760339384316,6.36968126,198.12,198.0,23.61583773]
[1760339384530,0.69,198.07,198.0,23.61583773]
[1760339384917,0.68,198.04,198.0,31.67647521]
[1760339385133,0.68,198.08,198.0,45.08583773]
[1760339385724,1e-08,198.01,198.0,45.08583773]
[1760339385929,0.68,198.08,198.01,10.87647521]
[1760339386126,0.68,198.08,198.07,17.24615647]
[1760339386340,0.68,198.07,198.06,10.87647521]
[1760339386846,0.67,198.07,198.01,5.0500259]
[1760339387140,0.67,198.06,198.05,6.36968126]
[1760339387339,0.67,198.06,198.04,17.24615647]
[1760339387544,0.67,198.05,198.04,17.24615647]
[1760339389419,0.67,198.05,198.04,10.87647521]
[1760339389636,0.67,198.05,198.01,6.36968126]
[1760339389834,0.67,198.04,198.01,6.36968126]
[1760339390043,0.67,198.03,198.01,6.36968126]
[1760339390221,0.67,198.02,198.01,17.24615647]
[1760339390938,0.67,198.02,198.01,10.87647521]
[1760339391128,0.67,198.02,198.01,17.24615647]
[1760339391324,6.36968126,198.07,198.01,17.24615647]
[1760339391325,0.67,198.07,198.02,10.87647521]
[1760339391532,0.67,198.06,198.04,6.36968126]
[1760339391725,0.67,198.06,197.99,0.66]
[1760339391726,0.67,198.05,198.01,5.05018947]
[1760339391933,0.09386106,198.03,198.02,0.66]
[1760339392447,0.10230243,198.04,198.03,36.72621514]
[1760339392646,0.10230243,198.04,198.03,37.89118913]
[1760339392834,0.09926406,198.05,198.04,17.24615647]
[1760339393030,0.09926406,198.05,198.04,17.90615647]
[1760339393247,0.09926406,198.05,198.04,11.53647521]
[1760339393436,0.09926406,198.05,198.04,17.90615647]
[1760339393636,0.09926406,198.05,198.04,10.87647521]
[1760339393856,0.09926406,198.05,198.04,17.24615647]
[1760339394037,0.09926406,198.05,198.04,17.90615647]
[1760339394355,0.09926406,198.05,198.04,22.29564142]
[1760339394548,0.09926406,198.05,198.04,22.80058991]
[1760339395268,0.09152607,198.06,198.04,23.46058991]
[1760339395556,0.09152607,198.06,198.05,17.90615647]
[1760339396145,0.09477239,198.07,198.06,10.87647521]
[1760339396344,0.10853173,198.11,198.08,10.87647521]
[1760339396539,0.10853173,198.11,198.08,17.24615647]
[1760339396753,0.10853173,198.11,198.08,17.90615647]
[1760339398046,0.10853173,198.11,198.08,10.87647521]
[1760339398253,0.10853173,198.11,198.08,17.24615647]
[1760339398547,0.10853173,198.11,198.08,22.29462173]
[1760339400230,0.10853173,198.11,198.09,10.87647521]
[1760339400447,0.10853173,198.11,198.09,17.90615647]
[1760339400661,0.10853173,198.11,198.09,17.24615647]
[1760339400956,0.10853173,198.11,198.09,38.70615647]
[1760339401156,0.09207521,198.12,198.11,10.87647521]
[1760339401379,0.09207521,198.12,198.11,20.35305483]
[1760339402138,0.09207521,198.12,198.11,25.4007556]
[1760339402538,0.76207521,198.12,198.11,25.4007556]
[1760339402838,0.09207521,198.12,198.11,25.4007556]
[1760339405067,0.09207521,198.12,198.11,15.92417598]
[1760339405277,0.76207521,198.12,198.11,10.87647521]
[1760339405678,0.76207521,198.12,198.11,25.4007556]
[1760339406669,0.09207521,198.12,198.11,25.4007556]
[1760339409272,0.76207521,198.12,198.11,25.4007556]
[1760339409472,0.09207521,198.12,198.11,105.8007556]
[1760339411553,0.77,198.19,198.15,10.87647521]
[1760339411751,0.1,198.19,198.18,9.47657962]
[1760339412048,0.10894765,198.17,198.16,10.87647521]
[1760339412458,0.77894765,198.17,198.16,10.87647521]
[1760339412679,0.77894765,198.17,198.15,80.30792479]
[1760339412988,0.67,198.16,198.15,91.1844]
[1760339413191,0.67,198.16,198.15,100.66097962]
[1760339413871,0.10894765,198.17,198.16,10.87647521]
[1760339414185,0.10894765,198.17,198.16,20.35305483]
[1760339414375,0.77894765,198.17,198.16,20.35305483]
[1760339414760,0.10894765,198.17,198.16,20.35305483]
[1760339415195,0.10894765,198.17,198.16,25.39948195]
[1760339415883,0.10894765,198.17,198.16,15.92290233]
[1760339416073,0.10894765,198.17,198.16,25.39948195]
[1760339417394,0.10894765,198.17,198.16,15.92290233]
[1760339417564,0.10894765,198.17,198.16,25.39948195]
[1760339418383,0.10894765,198.17,198.16,15.92290233]
[1760339418590,0.10894765,198.17,198.16,25.39948195]
[1760339419569,0.79894765,198.17,198.16,15.92290233]
[1760339420182,0.79894765,198.17,198.14,10.87647521]
[1760339420387,0.69,198.16,198.14,10.87647521]
[1760339420692,0.69,198.16,198.14,25.39976281]
[1760339420888,0.10894765,198.17,198.15,9.47657962]
[1760339421094,0.69,198.16,198.15,9.47657962]
[1760339421281,0.69,198.16,198.14,25.39976281]
[1760339421480,0.69,198.15,198.14,25.39976281]
[1760339421695,0.69,198.15,198.14,15.92318319]
[1760339421901,0.69,198.15,198.14,96.23110798]
[1760339422072,0.69,198.15,198.14,15.92318319]
[1760339422698,0.69,198.15,198.05,16.6157052]
[1760339423005,0.69,198.14,198.1,10.87647521]
[1760339423181,9.47657962,198.15,198.1,10.87647521]
[1760339423390,0.69,198.13,198.1,10.87647521]
[1760339423930,0.69,198.12,198.1,3.97980344]
[1760339424202,0.69,198.15,198.12,10.87647521]
[1760339424503,0.69,198.14,198.12,3.97980344]
[1760339424674,0.10894765,198.17,198.12,3.97980344]
[1760339424675,0.69,198.13,198.12,3.97980344]
[1760339425208,0.10894765,198.17,198.13,10.87647521]
[1760339425400,0.69,198.16,198.15,10.87647521]
[1760339425704,0.10894765,198.17,198.15,14.85627865]
[1760339425910,0.10894765,198.17,198.16,14.85627865]
[1760339426782,0.10894765,198.17,198.16,19.90270577]
[1760339429114,0.10894765,198.17,198.16,20.59270577]
[1760339429705,1e-08,198.17,198.16,20.59270577]
[1760339429908,1e-08,198.18,198.17,10.87647521]
[1760339430218,1e-08,198.18,198.17,19.52608209]
[1760339430410,1e-08,198.19,198.17,15.54627865]
[1760339430609,5.04211613,198.33,198.16,18.16713765]
[1760339430610,0.69,198.29,198.2,20.8]
[1760339430910,0.69,198.29,198.21,31.67647521]
[1760339431207,0.69,198.29,198.26,14.85627865]
[1760339431919,0.20868601,198.27,198.26,14.85627865]
[1760339432693,0.20868601,198.27,198.26,19.90016042]
[1760339434528,0.19177272,198.34,198.31,10.87647521]
[1760339434691,0.19177272,198.34,198.31,19.8988887]
[1760339435103,0.19177272,198.34,198.31,20.4031497]
[1760339435309,0.19177272,198.34,198.31,25.37960306]
[1760339435507,0.19177272,198.34,198.31,15.91908526]
[1760339435712,0.19177272,198.34,198.31,25.37960306]
[1760339435713,0.88177272,198.34,198.31,25.37960306]
[1760339435921,0.19177272,198.34,198.31,25.37960306]
[1760339436108,0.19177272,198.34,198.31,26.06960306]
[1760339436308,0.19177272,198.34,198.32,21.02699301]
[1760339436828,0.19177272,198.34,198.32,26.06934879]
[1760339438108,1e-08,198.34,198.33,20.33699301]
[1760339438314,1e-08,198.34,198.33,21.02699301]
[1760339439011,1e-08,198.34,198.33,26.06909455]
[1760339439223,1e-08,198.35,198.34,10.87647521]
[1760339439444,1e-08,198.36,198.34,21.02699301]
[1760339439610,32.67499362,198.55,198.43,20.8]
[1760339439806,0.69,198.54,198.49,9.4605178]
[1760339440006,0.69,198.53,198.48,9.4605178]
[1760339440212,0.69,198.52,198.44,10.87647521]
[1760339440534,0.69,198.51,198.5,20.33699301]
[1760339440833,0.69,198.51,198.5,9.4605178]
[1760339441031,0.69,198.51,198.48,10.87647521]
[1760339441334,0.69,198.53,198.5,9.4605178]
[1760339441507,0.69,198.53,198.52,20.33699301]
[1760339441713,0.1,198.54,198.53,10.87647521]
[1760339441931,0.79,198.54,198.53,20.33699301]
[1760339442136,0.1,198.54,198.53,10.87647521]
[1760339442431,10.8640666,198.58,198.54,10.87647521]
[1760339442432,10.1740666,198.58,198.54,10.87647521]
[1760339442634,10.1740666,198.58,198.56,10.87647521]
[1760339442834,10.1740666,198.58,198.56,20.33699301]
[1760339443135,10.1740666,198.58,198.56,15.91273628]
[1760339443338,10.1740666,198.58,198.56,25.37325408]
[1760339443740,10.1740666,198.58,198.56,26.06325408]
[1760339444246,10.1740666,198.58,198.56,10.87647521]
[1760339444617,10.1740666,198.58,198.56,20.33699301]
[1760339445210,10.1740666,198.58,198.56,10.87647521]
[1760339445624,2.14,198.57,198.56,10.87647521]
[1760339445835,2.14,198.57,198.44,0.69]
[1760339446217,7.17609377,198.57,198.45,10.87647521]
[1760339446425,9.4605178,198.55,198.4,0.69]
[1760339446623,0.66,198.54,198.49,9.4605178]
[1760339446813,0.66,198.53,198.49,9.4605178]
[1760339447052,19.0761124,198.57,198.37,5.76088155]
[1760339447053,20.8,198.49,198.37,5.76088155]
[1760339447220,9.4605178,198.47,198.41,9.4605178]
[1760339447540,20.8,198.49,198.29,0.72]
[1760339447541,9.4605178,198.44,198.29,0.72]
[1760339447841,9.4605178,198.39,198.33,9.4605178]
[1760339448140,9.4605178,198.38,198.32,9.4605178]
[1760339448318,9.4605178,198.36,198.3,9.4605178]
[1760339448518,0.66,198.35,198.25,5.04413619]
[1760339448740,0.66,198.34,198.29,9.4605178]
[1760339448936,9.4605178,198.32,198.18,0.68]
[1760339449237,9.4605178,198.29,198.19,5.04566325]
[1760339449421,10.1705178,198.28,198.22,9.4605178]
[1760339449622,0.71,198.27,198.22,9.4605178]
[1760339449822,0.71,198.26,198.22,9.4605178]
[1760339450120,0.71,198.29,198.25,9.4605178]
[1760339450325,10.1705178,198.28,198.21,9.4605178]
[1760339450516,0.71,198.27,198.21,9.4605178]
[1760339450833,0.71,198.26,198.22,9.4605178]
[1760339451039,0.71,198.25,198.16,17.66226137]
[1760339451346,0.71,198.25,198.22,9.4605178]
[1760339451732,0.71,198.3,198.2,10.87647521]
[1760339451941,0.10672268,198.27,198.26,20.33699301]
[1760339452144,0.81672268,198.27,198.26,20.33699301]
[1760339452623,0.81672268,198.27,198.26,10.87647521]
[1760339452821,0.10672268,198.27,198.26,20.33699301]
[1760339453127,0.10672268,198.27,198.26,25.38087478]
[1760339455149,0.10672268,198.27,198.26,15.92035698]
[1760339455319,0.81672268,198.27,198.26,15.92035698]
[1760339455514,0.81672268,198.27,198.22,5.0448996]
[1760339455718,0.71,198.26,198.23,10.87647521]
[1760339455935,0.71,198.26,198.22,5.0448996]
[1760339455936,0.71,198.25,198.22,5.0448996]
[1760339456247,0.71,198.24,198.2,15.92168563]
[1760339456459,0.10672268,198.27,198.2,15.92168563]
[1760339456460,10.1705178,198.23,198.2,15.92168563]
[1760339456741,0.71,198.22,198.2,15.92168563]
[1760339456944,0.71,198.21,198.2,15.92168563]
[1760339457133,0.71,198.21,198.16,5.04642712]
[1760339457332,0.71,198.2,198.17,10.87647521]
[1760339457539,0.71,198.19,198.17,10.87647521]
[1760339457745,0.71,198.18,198.16,5.04642712]
[1760339457948,0.71,198.18,198.14,5.04672343]
[1760339458156,10.1705178,198.17,198.11,0.2]
[1760339458469,9.4605178,198.21,198.15,9.4605178]
[1760339458625,0.71,198.2,198.16,9.4605178]
[1760339458960,9.4605178,198.22,198.16,9.4605178]
[1760339458961,0.71,198.19,198.16,9.4605178]
[1760339459127,0.71,198.23,198.18,20.33699301]
[1760339459329,9.4605178,198.21,198.17,5.04617247]
[1760339459532,9.4605178,198.2,198.17,5.04617247]
[1760339459734,0.71,198.19,198.17,5.04617247]
[1760339459936,0.71,198.25,198.17,17.66160366]
[1760339460134,9.4605178,198.19,198.17,5.04617247]
[1760339460332,10.1705178,198.18,198.13,5.04719123]
[1760339460546,0.71,198.17,198.13,17.66516932]
[1760339460848,9.4605178,198.17,198.13,17.66516932]
[1760339461034,9.4605178,198.15,198.13,5.04719123]
[1760339461238,10.1705178,198.14,198.13,5.04719123]
[1760339461451,0.71,198.14,198.13,5.04719123]
[1760339462563,20.8,198.21,198.13,5.04719123]
[1760339462733,0.71,198.18,198.13,5.04719123]
[1760339462939,0.71,198.18,198.14,10.87647521]
[1760339463246,9.4605178,198.21,198.16,10.87647521]
[1760339463550,0.71,198.2,198.16,10.87647521]
[1760339463728,0.71,198.19,198.16,10.87647521]
[1760339464148,0.71,198.22,198.16,10.87647521]
[1760339464354,0.10672268,198.27,198.17,6.36419761]
[1760339464544,0.10672268,198.27,198.16,10.87647521]
[1760339464545,7.07419761,198.25,198.18,6.36419761]
[1760339464945,0.81672268,198.27,198.22,6.36419761]
[1760339465155,0.10672268,198.27,198.24,5.04439063]
[1760339465356,0.10672268,198.27,198.24,11.40858824]
[1760339465536,0.10672268,198.27,198.24,24.01956483]
[1760339465733,0.10672268,198.27,198.24,17.65536722]
[1760339466161,0.10672268,198.27,198.26,17.24067282]
[1760339466352,0.09935498,198.28,198.26,17.24067282]
[1760339466353,0.09935498,198.28,198.26,10.87647521]
[1760339466656,0.09935498,198.28,198.25,0.68]
[1760339466657,0.09935498,198.28,198.27,7.04419761]
[1760339466863,0.1003926,198.3,198.29,17.24067282]
[1760339467230,0.1003926,198.3,198.29,22.28379148]
[1760339467637,1e-08,198.3,198.29,22.28379148]
[1760339467855,1e-08,198.31,198.3,10.87647521]
[1760339468069,1e-08,198.31,198.3,17.24067282]
[1760339468837,1e-08,198.32,198.3,17.24067282]
[1760339469050,1e-08,198.32,198.3,17.92067282]
[1760339469340,1e-08,198.32,198.31,22.96328287]
[1760339469551,0.71,198.42,198.32,10.87647521]
[1760339469752,0.71,198.42,198.39,6.36419761]
[1760339470055,0.71,198.41,198.39,6.36419761]
[1760339470260,0.71,198.41,198.31,17.64913518]
[1760339470261,6.36419761,198.4,198.31,17.64913518]
[1760339470439,6.36419761,198.32,198.26,12.60928024]
[1760339470638,0.71,198.31,198.26,12.60928024]
[1760339470841,6.36419761,198.28,198.25,5.04413619]
[1760339471047,6.36419761,198.3,198.25,17.65447666]
[1760339471258,0.71,198.29,198.25,17.65447666]
[1760339471759,0.11073433,198.26,198.25,17.65447666]
[1760339471966,0.11073433,198.26,198.25,28.53095187]
[1760339472850,7.18493194,198.26,198.22,5.04468488]
[1760339473056,7.07419761,198.25,198.22,5.04468488]
[1760339473252,0.71,198.24,198.22,5.04468488]
[1760339473443,0.71,198.23,198.2,5.04540867]
[1760339473644,0.71,198.22,198.2,5.04540867]
[1760339473945,6.36419761,198.21,198.19,5.04565895]
[1760339474158,0.71,198.25,198.19,11.40985656]
[1760339474464,0.11073433,198.26,198.24,10.87647521]
[1760339474967,0.11073433,198.26,198.24,17.24067282]
[1760339475266,0.11073433,198.26,198.19,17.65981708]
[1760339475442,0.71,198.25,198.2,10.87647521]
[1760339475638,0.71,198.24,198.19,18.97835574]
[1760339475853,0.71,198.23,198.18,11.41011546]
[1760339476062,0.71,198.22,198.18,5.04591785]
[1760339476252,0.71,198.21,198.18,5.04591785]
[1760339476467,0.82073433,198.26,198.19,10.87647521]
[1760339476647,0.11073433,198.26,198.23,10.87647521]
[1760339476877,0.11073433,198.26,198.24,6.36419761]
[1760339477250,0.11073433,198.26,198.23,6.36419761]
[1760339477474,0.11073433,198.26,198.24,11.40858824]
[1760339477673,0.11073433,198.26,198.24,5.04439063]
[1760339477964,0.11073433,198.26,198.24,11.40858824]
[1760339478167,0.11073433,198.26,198.25,10.87647521]
[1760339478380,1e-08,198.26,198.25,17.90067282]
[1760339478756,1e-08,198.26,198.25,17.24067282]
[1760339479072,1e-08,198.26,198.25,10.87647521]
[1760339479375,1e-08,198.26,198.25,15.9206114]
[1760339479576,1e-08,198.26,198.25,22.28480901]
[1760339479751,1e-08,198.26,198.25,22.94480901]
[1760339480250,1e-08,198.27,198.26,10.87647521]
[1760339480456,1e-08,198.27,198.26,17.24067282]
[1760339480958,1e-08,198.27,198.26,17.90067282]
[1760339481354,0.09969364,198.29,198.27,15.92010258]
[1760339481673,0.10549651,198.3,198.29,10.87647521]
[1760339481854,0.10549651,198.3,198.29,17.24067282]
[1760339482253,0.10549651,198.3,198.29,10.87647521]
[1760339482667,0.81549651,198.3,198.27,17.65269581]
[1760339482846,0.71,198.29,198.27,17.65269581]
[1760339483362,7.07419761,198.28,198.25,23.48681568]
[1760339483667,0.71,198.27,198.25,23.48681568]
[1760339484066,6.36419761,198.27,198.25,12.61034047]
[1760339485062,6.36419761,198.27,198.25,10.87647521]
[1760339485263,0.71,198.26,198.25,10.87647521]
[1760339485571,7.07419761,198.26,198.2,5.04540867]
[1760339485774,6.36419761,198.22,198.2,5.04540867]
[1760339486071,7.07419761,198.22,198.2,5.04540867]
[1760339486868,0.10549651,198.3,198.2,17.65893036]
[1760339487079,6.36419761,198.27,198.23,10.87647521]
[1760339487284,6.36419761,198.27,198.22,5.0448996]
[1760339487285,6.36419761,198.24,198.22,5.0448996]
[1760339487572,7.07419761,198.23,198.22,5.0448996]
[1760339487954,7.07419761,198.23,198.18,15.92239306]
[1760339488153,7.07419761,198.22,198.18,15.92239306]
[1760339488355,6.36419761,198.2,198.18,5.04591785]
[1760339488570,0.71,198.19,198.18,5.04591785]
[1760339488969,6.36419761,198.2,198.18,5.04591785]
[1760339489172,0.71,198.19,198.15,23.4926893]
[1760339489760,6.36419761,198.2,198.15,23.4926893]
[1760339490161,0.71,198.19,198.15,23.4926893]
[1760339490360,7.07419761,198.2,198.15,23.4926893]
[1760339490562,0.71,198.23,198.17,6.36419761]
[1760339490769,7.07419761,198.23,198.17,6.36419761]
[1760339490970,7.07419761,198.23,198.16,10.87647521]
[1760339491168,0.71,198.24,198.19,10.87647521]
[1760339491506,7.07419761,198.23,198.19,10.87647521]
[1760339491778,0.09636649,198.2,198.19,10.87647521]
[1760339492279,0.09636649,198.2,198.19,22.28633607]
[1760339492573,0.09636649,198.2,198.19,5.04566325]
[1760339492876,7.1505641,198.2,198.15,12.61650694]
[1760339493173,6.36419761,198.18,198.16,5.04642712]
[1760339493385,7.05419761,198.18,198.16,5.04642712]
[1760339493556,0.09636649,198.2,198.16,17.66249494]
[1760339493762,0.09636649,198.2,198.16,24.02669255]
[1760339494062,0.09636649,198.2,198.17,11.59647521]
[1760339494278,0.09636649,198.2,198.19,22.28633607]
[1760339494569,0.09636649,198.2,198.19,5.04566325]
[1760339495167,0.09636649,198.2,198.19,23.00633607]
[1760339495376,0.10379691,198.21,198.19,23.00633607]
[1760339495377,0.10379691,198.21,198.19,16.64213846]
[1760339495700,1e-08,198.21,198.2,7.08419761]
[1760339496371,1e-08,198.21,198.2,5.04540867]
[1760339496568,1e-08,198.21,198.2,22.28608149]
[1760339497482,1e-08,198.21,198.2,23.00608149]
[1760339499588,1e-08,198.21,198.2,22.28608149]
[1760339499792,1e-08,198.21,198.2,23.00608149]
[1760339499988,1e-08,198.21,198.2,22.28608149]
[1760339500283,1e-08,198.21,198.2,5.04540867]
[1760339501696,0.69000001,198.21,198.2,5.04540867]
[1760339502191,1e-08,198.21,198.19,6.36419761]
[1760339502368,1e-08,198.21,198.18,17.66044952]
[1760339502369,1e-08,198.21,198.2,6.36419761]
[1760339504181,1e-08,198.21,198.2,22.28608149]
[1760339505770,0.11090948,198.23,198.21,10.87647521]
[1760339505969,0.09954106,198.24,198.23,10.87647521]
[1760339506170,1e-08,198.25,198.24,15.92086584]
[1760339506376,0.09129934,198.28,198.25,10.87647521]
[1760339506600,1e-08,198.28,198.27,10.87647521]
[1760339506791,1e-08,198.28,198.27,17.24067282]
[1760339507382,0.69,198.34,198.27,17.91067282]
[1760339507587,0.69,198.34,198.33,6.36419761]
[1760339507782,0.67,198.33,198.25,10.87647521]
[1760339508095,0.67,198.32,198.28,5.043373]
[1760339508298,6.36419761,198.33,198.28,5.043373]
[1760339508476,6.36419761,198.3,198.28,5.043373]
[1760339508674,0.67,198.32,198.28,11.40757061]
[1760339508870,0.67,198.32,198.29,6.36419761]
[1760339509297,0.7,198.35,198.31,6.36419761]
[1760339509493,0.7,198.35,198.32,6.36419761]
[1760339510302,0.7,198.35,198.33,5.04210154]
[1760339510494,0.7,198.34,198.33,5.04210154]
[1760339511296,0.7,198.37,198.33,17.6473554]
[1760339511499,0.7,198.36,198.33,5.04210154]
[1760339511697,0.7,198.35,198.33,5.04210154]
[1760339511897,0.09637213,198.34,198.33,4.54210154]
[1760339512195,0.09233608,198.36,198.34,10.87647521]
[1760339512402,0.09233608,198.36,198.35,5.04159314]
[1760339512593,0.09233608,198.36,198.35,11.40579075]
[1760339513590,0.09233608,198.36,198.35,22.28226596]
[1760339514605,1e-08,198.43,198.39,31.67647521]
[1760339514787,1e-08,198.43,198.42,17.24067282]
[1760339515190,1e-08,198.43,198.42,17.90067282]
[1760339515389,0.1,198.49,198.48,17.24067282]
[1760339515608,0.1,198.49,198.46,6.36419761]
[1760339516011,0.1,198.49,198.47,6.36419761]
[1760339516211,0.1,198.49,198.48,6.36419761]
[1760339516408,0.1,198.49,198.48,5.03829101]
[1760339516712,0.1,198.49,198.48,11.40248862]
[1760339517012,0.1,198.49,198.48,22.27896383]
[1760339517789,0.1,198.49,198.48,15.91476622]
[1760339517990,0.1,198.49,198.48,22.27896383]
[1760339518190,0.1,198.49,198.48,5.03829101]
[1760339518385,0.8,198.49,198.46,12.59678867]
[1760339518917,0.1,198.49,198.47,6.36419761]
[1760339519392,0.1,198.49,198.48,6.36419761]
[1760339519592,0.1,198.49,198.47,17.24067282]
[1760339519900,0.1,198.49,198.47,10.87647521]
[1760339520108,0.1,198.49,198.48,6.36419761]
[1760339520306,1.45,198.57,198.49,10.87647521]
[1760339520504,8.51419761,198.57,198.5,6.36419761]
[1760339520711,2.15,198.57,198.52,6.36419761]
[1760339521011,2.15,198.57,198.48,17.63401853]
[1760339521012,0.7,198.56,198.48,42.82547358]
[1760339521215,6.36419761,198.53,198.48,17.63401853]
[1760339521423,6.36419761,198.51,198.48,5.03829101]
[1760339521713,6.36419761,198.54,198.48,17.63401853]
[1760339521917,0.7,198.53,198.48,17.63401853]
[1760339522214,6.36419761,198.55,198.48,23.99821614]
[1760339522414,7.81419761,198.57,198.51,17.63135357]
[1760339522711,1.45,198.57,198.52,6.36419761]
[1760339523013,6.36419761,198.54,198.51,5.03752959]
[1760339523210,0.7,198.53,198.51,5.03752959]
[1760339523902,0.7,198.56,198.51,5.03752959]
[1760339524096,10.14857329,198.55,198.51,5.03752959]
[1760339524302,10.14857329,198.54,198.51,5.03752959]
[1760339524500,0.7,198.53,198.49,5.03803718]
[1760339524906,9.44857329,198.55,198.49,27.08170342]
[1760339525098,10.14857329,198.56,198.5,9.44857329]
[1760339525306,0.7,198.56,198.5,9.44857329]
[1760339525507,9.44857329,198.55,198.49,27.08170342]
[1760339525709,0.7,198.56,198.49,27.08170342]
[1760339525710,10.14857329,198.56,198.5,9.44857329]
[1760339526095,9.44857329,198.55,198.51,5.03752959]
[1760339526302,10.14857329,198.55,198.51,5.03752959]
[1760339526496,9.44857329,198.55,198.51,5.03752959]
[1760339526699,0.7,198.54,198.51,5.03752959]